bitfinex/quotes_ETHUSD_20241006
["timestamp","ask_amount","ask_price","bid_price","bid_amount"]
[1728236482640,0.42556925,2443.8,2443.7,1.71799977]
[1728236483277,0.42556925,2443.8,2443.7,2.43217174]
[1728236483497,0.42556925,2443.8,2443.7,4.79189197]
[1728236483675,3.97437604,2443.9,2443.8,4.07759]
[1728236483981,8.2479,2444.6,2444.1,0.804]
[1728236484167,0.7979,2444.8,2444.2,3.27295]
[1728236484372,0.7979,2444.8,2444.1,2.51891566]
[1728236484580,4.18796483,2444.9,2444.1,1.71491566]
[1728236484581,0.7979,2444.4,2444.1,1.71491566]
[1728236484774,4.07075,2444.4,2444.1,1.71491566]
[1728236486360,4.07075,2444.4,2444.0,2.14364458]
[1728236486361,4.07075,2444.4,2444.0,1.71491566]
[1728236488389,0.7979,2444.4,2443.9,5.79235566]
[1728236488545,0.7979,2444.4,2443.9,6.98441866]
[1728236489794,0.7979,2444.4,2444.0,3.2733]
[1728236490549,0.7979,2444.4,2444.1,3.27317]
[1728236490745,3.58853569,2444.6,2444.1,3.27309]
[1728236490982,3.58853569,2444.6,2444.3,3.27284]
[1728236491487,3.58853569,2444.6,2444.2,7.10785289]
[1728236491665,3.58853569,2444.6,2444.2,3.83481289]
[1728236494720,3.58853569,2444.6,2444.2,7.10778289]
[1728236494897,3.58853569,2444.6,2444.2,3.83474289]
[1728236497818,4.06152,2444.8,2444.2,3.83474289]
[1728236498014,4.06152,2444.8,2444.2,3.27297]
[1728236500915,3.27239,2444.7,2444.2,3.27297]
[1728236509629,0.7852,2444.6,2444.2,3.27297]
[1728236514982,0.7852,2444.4,2444.0,3.27319]
[1728236516496,0.7852,2444.4,2444.0,4.98810566]
[1728236520096,0.7852,2444.4,2444.0,8.26133566]
[1728236520257,0.7852,2444.4,2444.0,4.98810566]
[1728236520593,0.7852,2444.4,2444.1,1.71491566]
[1728236522415,0.7852,2444.4,2444.2,1.71491566]
[1728236522592,0.7852,2444.4,2444.1,1.71491566]
[1728236522999,3.27292,2444.3,2444.1,1.71491566]
[1728236524622,4.05798,2444.4,2444.1,1.71491566]
[1728236525297,4.05798,2444.4,2444.2,1.71491566]
[1728236527277,3.27292,2444.3,2444.2,1.71491566]
[1728236528182,4.05798,2444.4,2444.2,1.71491566]
[1728236528381,4.05798,2444.4,2444.3,1.71491566]
[1728236536426,0.7852,2444.4,2444.3,1.71491566]
[1728236536734,0.7852,2444.4,2444.2,2.14629837]
[1728236536938,0.64085104,2444.4,2444.3,2.14629837]
[1728236537642,0.64085104,2444.4,2444.2,2.14629837]
[1728236537802,0.64085104,2444.4,2444.3,2.14629837]
[1728236538636,3.91363104,2444.4,2444.2,2.14629837]
[1728236538798,3.91363104,2444.4,2444.3,2.14629837]
[1728236540730,3.91363104,2444.4,2444.2,2.14599586]
[1728236541041,3.91363104,2444.4,2444.3,2.14599586]
[1728236542136,3.27292,2444.3,2444.1,0.7535]
[1728236542547,3.27292,2444.3,2444.2,2.14614454]
[1728236542833,3.27292,2444.3,2444.1,3.32869503]
[1728236544968,3.27292,2444.3,2444.1,0.7535]
[1728236546531,3.27292,2444.3,2444.2,2.14631188]
[1728236547525,3.27292,2444.3,2444.1,0.7535]
[1728236548038,3.27292,2444.3,2444.1,3.32895021]
[1728236548237,3.2728,2444.4,2444.1,3.32895021]
[1728236548478,3.2728,2444.4,2444.3,2.1463142]
[1728236549581,3.27274,2444.5,2444.3,2.1463142]
[1728236549804,3.27274,2444.5,2444.4,1.71733382]
[1728236550577,3.27274,2444.5,2444.3,2.1463142]
[1728236550811,3.27274,2444.5,2444.4,1.71732153]
[1728236551718,3.27274,2444.5,2444.3,2.14665192]
[1728236552315,3.27252,2444.6,2444.4,2.14665192]
[1728236552492,3.27252,2444.6,2444.5,1.71714573]
[1728236556318,3.27252,2444.6,2444.5,2.14674576]
[1728236557236,3.27265,2444.5,2444.4,2.14674576]
[1728236557384,3.27265,2444.5,2444.3,0.8027]
[1728236557586,3.27265,2444.5,2444.4,2.14592107]
[1728236557922,3.27265,2444.5,2444.4,2.1459617]
[1728236558691,3.91335433,2444.7,2444.4,2.1459617]
[1728236559031,3.91335433,2444.7,2444.6,1.7166488]
[1728236559896,0.64085433,2444.7,2444.5,2.1454299]
[1728236560226,3.27251,2444.6,2444.5,2.1454299]
[1728236560731,3.27251,2444.6,2444.5,2.14493733]
[1728236561137,3.27251,2444.6,2444.5,2.90323733]
[1728236561295,0.64085433,2444.7,2444.5,2.90323733]
[1728236561633,0.64085433,2444.7,2444.6,1.71571371]
[1728236561793,3.91323433,2444.7,2444.6,1.71571371]
[1728236563407,3.91323433,2444.7,2444.5,2.47401371]
[1728236564771,3.91323433,2444.7,2444.6,1.71571371]
[1728236568884,3.91323433,2444.7,2444.5,2.47401371]
[1728236569463,3.91323433,2444.7,2444.6,1.71571371]
[1728236569992,3.91323433,2444.7,2444.5,2.47401371]
[1728236570554,3.91323433,2444.7,2444.6,1.71571371]
[1728236571075,3.91323433,2444.7,2444.5,2.47401371]
[1728236572090,3.91323433,2444.7,2444.6,1.71571371]
[1728236573292,3.91323433,2444.7,2444.5,2.47401371]
[1728236574907,3.91323433,2444.7,2444.6,1.71571371]
[1728236577001,3.91323433,2444.7,2444.5,0.7583]
[1728236577002,3.91323433,2444.7,2444.5,2.47401371]
[1728236579010,3.27238,2444.7,2444.5,2.47401371]
[1728236579195,3.27238,2444.7,2444.6,1.71571371]
[1728236579972,4.08191,2444.6,2444.5,1.71571371]
[1728236581777,4.08191,2444.6,2444.5,1.71346258]
[1728236582177,3.27265,2444.5,2444.4,2.14172532]
[1728236584627,4.08192,2444.6,2444.4,2.14209777]
[1728236584930,7.35452,2444.6,2444.5,1.71351413]
[1728236585088,4.08192,2444.6,2444.4,2.14209777]
[1728236585287,4.08192,2444.6,2444.5,1.71342993]
[1728236587401,7.35452,2444.6,2444.4,2.14209777]
[1728236587800,3.27252,2444.6,2444.5,2.14209777]
[1728236588113,3.27252,2444.6,2444.5,1.712865]
[1728236588434,3.27252,2444.6,2444.5,1.71301727]
[1728236589627,3.27252,2444.6,2444.4,2.14209777]
[1728236589822,3.27252,2444.6,2444.5,2.14209777]
[1728236590212,3.27252,2444.6,2444.4,2.14209777]
[1728236590632,3.27252,2444.6,2444.5,2.14209777]
[1728236590923,3.27252,2444.6,2444.4,2.14209777]
[1728236591130,3.27252,2444.6,2444.5,1.71308905]
[1728236592727,3.27252,2444.6,2444.4,2.14209777]
[1728236592930,3.27252,2444.6,2444.5,2.14209777]
[1728236599655,3.27252,2444.6,2444.5,2.14214528]
[1728236600857,4.04712,2444.6,2444.5,2.14214528]
[1728236604767,4.04711,2444.6,2444.5,2.14245593]
[1728236607265,6.54485,2444.7,2444.5,2.14245593]
[1728236607474,3.2724,2444.7,2444.6,1.71391125]
[1728236609871,3.2724,2444.7,2444.6,0.7903]
[1728236610072,3.2724,2444.7,2444.6,2.50413149]
[1728236610573,3.2724,2444.7,2444.6,2.50416139]
[1728236612372,3.2724,2444.7,2444.6,0.7903]
[1728236612780,3.27251,2444.6,2444.5,2.14225719]
[1728236613149,3.27251,2444.6,2444.3,3.36100863]
[1728236613445,3.27251,2444.6,2444.3,4.3243395]
[1728236613755,3.27251,2444.6,2444.5,2.14226116]
[1728236614644,3.27251,2444.6,2444.3,3.36100863]
[1728236614846,3.27251,2444.6,2444.5,2.1423854]
[1728236618463,3.27267,2444.5,2444.3,3.36116248]
[1728236619577,4.047,2444.7,2444.3,3.36116248]
[1728236619787,3.2724,2444.7,2444.6,2.14218735]
[1728236620300,3.2724,2444.7,2444.6,2.14218351]
[1728236624876,3.2724,2444.7,2444.6,2.14192729]
[1728236624877,3.27238,2444.7,2444.6,2.14192729]
[1728236630612,3.27251,2444.6,2444.5,2.14192729]
[1728236630911,3.27251,2444.6,2444.3,3.36061274]
[1728236630912,3.27273,2444.5,2444.3,3.36061274]
[1728236631809,3.27251,2444.6,2444.3,3.36061274]
[1728236632170,6.54511,2444.6,2444.4,2.57031274]
[1728236632371,6.54511,2444.6,2444.3,3.36061274]
[1728236633179,3.27266,2444.5,2444.3,3.36061274]
[1728236637787,3.27251,2444.6,2444.3,3.36061274]
[1728236637987,6.54513,2444.6,2444.3,3.36061274]
[1728236638520,3.27251,2444.6,2444.3,3.36061274]
[1728236639399,3.27251,2444.6,2444.4,2.57031274]
[1728236639628,3.91330339,2444.6,2444.4,2.57031274]
[1728236639992,3.91330339,2444.6,2444.4,2.57178062]
[1728236640517,3.91330339,2444.6,2444.3,3.36208062]
[1728236640909,3.91330339,2444.6,2444.4,2.57178062]
[1728236641724,3.91330339,2444.6,2444.3,0.7903]
[1728236641725,3.91330339,2444.6,2444.3,3.36208062]
[1728236641912,3.91330339,2444.6,2444.4,2.57178062]
[1728236643428,3.91330339,2444.6,2444.3,3.36208062]
[1728236643928,3.91330339,2444.6,2444.4,2.57178062]
[1728236644611,3.91330339,2444.6,2444.3,3.36208062]
[1728236646004,3.91330339,2444.6,2444.4,2.57178062]
[1728236646205,3.91330339,2444.6,2444.3,0.7903]
[1728236646206,7.18589339,2444.6,2444.3,3.36208062]
[1728236646733,3.91330339,2444.6,2444.4,2.57178062]
[1728236647899,3.91330339,2444.6,2444.3,3.36208062]
[1728236648124,3.27268,2444.5,2444.3,3.36208062]
[1728236648320,3.27268,2444.5,2444.4,2.57178062]
[1728236648538,3.27278,2444.4,2444.3,2.57128359]
[1728236648808,3.27278,2444.4,2443.7,0.7951]
[1728236648809,3.27292,2444.3,2444.2,2.57128359]
[1728236649144,3.27292,2444.3,2444.1,2.57151877]
[1728236649145,0.7526,2444.2,2444.1,2.57151877]
[1728236649299,0.7526,2444.2,2443.9,2.99983086]
[1728236649499,0.7526,2444.2,2444.1,2.57120937]
[1728236649823,0.7526,2444.2,2443.9,2.99983086]
[1728236650023,0.7526,2444.2,2444.1,2.57120832]
[1728236650434,0.7526,2444.2,2443.9,2.99983086]
[1728236650635,0.7526,2444.2,2444.1,2.57080155]
[1728236651714,4.02565,2444.2,2444.1,2.57080155]
[1728236653297,4.02565,2444.2,2444.1,2.57023777]
[1728236656910,3.27318,2444.1,2444.0,2.57023777]
[1728236657133,3.27345,2443.9,2443.8,2.57023777]
[1728236657518,3.27359,2443.8,2443.7,2.57023777]
[1728236658264,3.2738,2443.7,2443.4,2.99880352]
[1728236658620,3.2738,2443.7,2443.6,2.56965135]
[1728236659226,4.0264,2443.7,2443.6,2.56965135]
[1728236659435,4.0264,2443.7,2443.5,2.56965135]
[1728236659839,4.0264,2443.7,2443.6,2.56965135]
[1728236660351,4.0264,2443.7,2443.5,2.56965135]
[1728236663037,4.0264,2443.7,2443.5,2.56597215]
[1728236663860,4.0264,2443.7,2443.4,2.56597215]
[1728236664469,4.0264,2443.7,2443.6,2.13764826]
[1728236665265,4.0264,2443.7,2443.5,2.56597215]
[1728236665666,4.0264,2443.7,2443.4,2.56597215]
[1728236665866,4.0264,2443.7,2443.5,2.56597215]
[1728236666230,4.0264,2443.7,2443.4,2.56597215]
[1728236666431,4.0264,2443.7,2443.6,2.13717184]
[1728236667041,4.0264,2443.7,2443.6,1.70969338]
[1728236667247,3.27385,2443.6,2443.5,2.13717184]
[1728236668037,3.27385,2443.6,2443.5,2.13663402]
[1728236670276,4.10079,2443.5,2443.4,2.13663402]
[1728236670520,4.10079,2443.5,2443.4,1.70858903]
[1728236670779,3.27426,2443.3,2443.2,1.70858903]
[1728236670982,3.27426,2443.3,2443.1,1.70858903]
[1728236670983,3.27439,2443.2,2443.1,1.70858903]
[1728236672447,3.27439,2443.2,2443.0,1.70858903]
[1728236675054,3.27452,2443.1,2443.0,1.70858903]
[1728236675256,3.27452,2443.1,2442.9,1.70858903]
[1728236676692,6.54891,2443.2,2442.9,1.70858903]
[1728236677498,3.27439,2443.2,2442.9,1.70858903]
[1728236677667,3.27439,2443.2,2442.9,2.49723172]
[1728236679150,6.54886,2443.2,2442.9,2.49723172]
[1728236679355,3.27439,2443.2,2442.9,2.49723172]
[1728236679582,6.54887,2443.2,2442.9,2.49723172]
[1728236679788,3.27439,2443.2,2443.0,1.70858903]
[1728236680152,6.54886,2443.2,2443.0,1.70858903]
[1728236680689,6.54886,2443.2,2442.9,1.70858903]
[1728236681357,3.27453,2443.1,2442.9,1.70858903]
[1728236693607,3.27453,2443.1,2443.0,1.70858903]
[1728236697623,3.27453,2443.1,2442.7,0.7677]
[1728236697799,3.27453,2443.1,2442.9,2.13505511]
[1728236698004,3.27453,2443.1,2443.0,1.70806613]
[1728236698300,3.27453,2443.1,2442.9,2.13505511]
[1728236698621,3.27453,2443.1,2443.0,2.13505511]
[1728236699894,3.91570373,2443.1,2443.0,2.13505511]
[1728236702409,0.64117373,2443.1,2442.8,3.12260102]
[1728236702595,3.27467,2443.0,2442.8,3.12260102]
[1728236703633,3.27467,2443.0,2442.9,2.56206613]
[1728236704133,3.27467,2443.0,2442.8,3.12260102]
[1728236704425,3.27467,2443.0,2442.9,2.56206613]
[1728236706631,3.27467,2443.0,2442.9,2.56696828]
[1728236708630,3.27479,2442.9,2442.8,2.56696828]
[1728236711399,3.27479,2442.9,2442.8,2.56938985]
[1728236713511,3.275,2442.8,2442.6,2.99762149]
[1728236715444,3.275,2442.8,2442.7,2.99762149]
[1728236716438,3.275,2442.8,2442.7,3.00178256]
[1728236721440,3.275,2442.8,2442.7,3.00258757]
[1728236721648,3.275,2442.8,2442.6,3.00258757]
[1728236721946,3.275,2442.8,2442.7,3.00258757]
[1728236722318,3.27506,2442.7,2442.6,3.00258757]
[1728236722707,3.27506,2442.7,2442.5,2.39543888]
[1728236722909,3.27506,2442.7,2442.6,3.00329689]
[1728236723440,3.27506,2442.7,2442.5,2.39543888]
[1728236723940,3.27506,2442.7,2442.6,3.00324412]
[1728236725540,0.64117373,2443.1,2442.7,0.8198]
[1728236725720,0.07123737,2443.3,2443.0,2.38233888]
[1728236725919,13.20536728,2443.4,2443.2,4.1353378]
[1728236725920,5.75536728,2443.4,2443.2,4.1353378]
[1728236726118,5.75536728,2443.4,2443.3,2.57279892]
[1728236726445,5.75536728,2443.4,2443.3,2.5724621]
[1728236727556,2.48116728,2443.4,2443.3,3.3922621]
[1728236727759,2.48116728,2443.4,2443.3,1.67664493]
[1728236727930,2.48116728,2443.4,2443.3,2.16540068]
[1728236728257,2.48116728,2443.4,2443.3,5.16660646]
[1728236728549,2.48116728,2443.4,2443.3,2.16540068]
[1728236729748,2.48116728,2443.4,2443.3,4.73572464]
[1728236730248,2.48116728,2443.4,2443.3,8.01007864]
[1728236730420,3.27322,2444.1,2443.6,0.7912]
[1728236730747,3.27318,2444.1,2443.9,2.14089431]
[1728236730946,3.27332,2444.0,2443.9,2.14089431]
[1728236731157,3.27332,2444.0,2443.7,3.11907317]
[1728236731158,3.27332,2444.0,2443.7,3.11869707]
[1728236731362,3.27332,2444.0,2443.9,2.14058089]
[1728236732629,3.27332,2444.0,2443.9,1.71094251]
[1728236734572,3.27332,2444.0,2443.8,1.71094251]
[1728236734872,3.27332,2444.0,2443.9,1.71094251]
[1728236735334,3.27332,2444.0,2443.8,1.71094251]
[1728236735639,3.27332,2444.0,2443.9,1.71094251]
[1728236735841,3.27303,2444.3,2444.0,0.7912]
[1728236736156,3.27303,2444.3,2444.0,2.90861065]
[1728236736337,3.27303,2444.3,2444.0,2.50214251]
[1728236736670,3.27303,2444.3,2444.0,0.7912]
[1728236736873,3.27303,2444.3,2444.0,2.50214251]
[1728236736874,3.27307,2444.2,2444.0,2.50214251]
[1728236738366,3.27307,2444.2,2444.0,0.7912]
[1728236738875,3.27307,2444.2,2444.0,2.50214251]
[1728236739380,3.27307,2444.2,2444.0,0.7912]
[1728236741966,3.27318,2444.1,2444.0,0.7912]
[1728236743264,3.27318,2444.1,2443.8,1.71094251]
[1728236743585,3.27345,2443.9,2443.8,1.71094251]
[1728236743991,3.27332,2444.0,2443.8,1.71094251]
[1728236744196,6.54672,2444.0,2443.8,1.71094251]
[1728236744391,3.27332,2444.0,2443.8,1.71094251]
[1728236744604,6.54674,2444.0,2443.8,1.71094251]
[1728236744808,0.0712029,2444.8,2443.9,0.8196]
[1728236745127,3.27272,2444.5,2444.1,0.8196]
[1728236745286,3.27272,2444.5,2444.2,0.55]
[1728236745891,3.27261,2444.6,2444.2,0.55]
[1728236746202,6.54522,2444.6,2444.2,0.55]
[1728236746798,0.0712029,2444.8,2444.3,0.8052]
[1728236747012,2.55630789,2444.9,2444.6,0.8052]
[1728236750136,5.82842789,2444.9,2444.6,0.8052]
[1728236750619,3.27157,2445.4,2444.9,0.55]
[1728236750818,3.27157,2445.4,2445.0,0.08163549]
[1728236751021,3.27157,2445.4,2445.0,1.56253888]
[1728236751319,0.8211,2445.6,2444.8,0.8245]
[1728236751535,3.27192,2445.1,2444.8,0.8245]
[1728236751823,6.54387,2445.1,2444.8,1.06320389]
[1728236752393,3.27192,2445.1,2444.8,1.06320389]
[1728236752624,3.27192,2445.1,2444.4,5.63484952]
[1728236752625,3.27226,2444.8,2444.6,0.8245]
[1728236752922,3.27219,2444.9,2444.6,0.8245]
[1728236753998,3.27225,2444.8,2444.6,0.8245]
[1728236754891,3.27219,2444.9,2444.6,0.8245]
[1728236755093,6.54441,2444.9,2444.6,0.8245]
[1728236755298,3.27219,2444.9,2444.6,0.8245]
[1728236755739,3.27162,2445.3,2444.9,0.55]
[1728236755899,3.27162,2445.3,2444.9,2.11253888]
[1728236756627,6.54328,2445.3,2444.9,2.11253888]
[1728236756995,6.54328,2445.3,2444.9,0.55]
[1728236757729,3.27162,2445.3,2445.0,0.8245]
[1728236758609,4.1632235,2445.8,2445.0,0.8245]
[1728236758610,6.5423,2445.7,2445.3,0.8245]
[1728236758810,3.27128,2445.6,2445.3,0.8245]
[1728236759014,3.27134,2445.5,2445.3,0.8245]
[1728236759542,3.27158,2445.3,2445.1,0.8245]
[1728236760300,3.27158,2445.3,2445.1,1.09257428]
[1728236760611,4.09204,2445.8,2444.7,0.7815]
[1728236760612,3.27198,2445.0,2444.7,0.7815]
[1728236760812,3.27222,2444.9,2444.7,0.7815]
[1728236761021,3.27222,2444.9,2444.7,0.83252731]
[1728236762518,0.8081,2446.0,2445.0,0.55]
[1728236762720,3.2714,2445.5,2445.1,0.7815]
[1728236762923,3.2714,2445.5,2445.2,0.47175761]
[1728236763255,3.2714,2445.5,2445.2,0.55354035]
[1728236763970,3.27146,2445.4,2445.2,0.55354035]
[1728236765534,3.27146,2445.4,2445.1,0.7815]
[1728236765711,3.27171,2445.2,2444.9,2.52614251]
[1728236765912,3.27187,2445.1,2444.9,0.8152]
[1728236766331,3.27187,2445.1,2444.9,2.52614251]
[1728236766506,3.27187,2445.1,2444.9,0.8152]
[1728236766720,3.27187,2445.1,2444.9,1.2798655]
[1728236767419,3.27198,2445.0,2444.9,1.71094251]
[1728236767625,3.27211,2444.9,2444.7,2.52614251]
[1728236767827,3.27198,2445.0,2444.7,2.52614251]
[1728236767828,3.27225,2444.8,2444.7,2.52614251]
[1728236768026,3.27225,2444.8,2444.7,1.71094251]
[1728236768646,6.54436,2444.9,2444.7,1.71094251]
[1728236768817,3.27213,2444.9,2444.7,1.71094251]
[1728236769212,3.27159,2445.3,2444.8,4.75127607]
[1728236769415,3.27159,2445.3,2444.9,1.71094251]
[1728236770767,3.27159,2445.3,2445.0,1.71094251]
[1728236770939,3.27179,2445.2,2445.0,1.71094251]
[1728236771279,3.27192,2445.1,2444.9,1.71094251]
[1728236771935,3.27139,2445.5,2445.0,6.46221858]
[1728236772138,3.27139,2445.5,2445.1,1.71094251]
[1728236772370,3.27158,2445.3,2445.0,3.07614251]
[1728236772851,6.54279,2445.5,2445.1,1.71094251]
[1728236773750,3.27139,2445.5,2445.1,1.71094251]
[1728236773940,6.54279,2445.5,2445.1,1.71094251]
[1728236774140,6.54278,2445.5,2445.1,1.71094251]
[1728236774760,6.54278,2445.5,2445.1,2.6046223]
[1728236774966,3.27159,2445.3,2445.1,1.71094251]
[1728236775147,3.27171,2445.2,2445.1,1.71094251]
[1728236775967,3.27184,2445.1,2445.0,1.71094251]
[1728236776139,3.27184,2445.1,2445.0,1.6998646]
[1728236776486,3.27198,2445.0,2444.9,2.12373277]
[1728236776776,3.27211,2444.9,2444.8,2.12373277]
[1728236777138,3.27211,2444.9,2444.8,1.70051469]
[1728236777975,3.27225,2444.8,2444.7,1.70051469]
[1728236778446,3.27171,2445.2,2444.7,6.59371752]
[1728236778647,3.27171,2445.2,2444.8,1.70058408]
[1728236778887,3.27171,2445.2,2444.9,1.70058408]
[1728236780463,3.27171,2445.2,2444.8,1.70058408]
[1728236780668,3.27171,2445.2,2444.9,1.70058408]
[1728236780999,8.2008,2445.7,2444.9,7.2446778]
[1728236781148,2.00056524,2445.8,2444.9,7.2446778]
[1728236781149,3.27175,2445.2,2445.0,1.70058408]
[1728236781350,3.27184,2445.1,2444.9,2.1256077]
[1728236781568,3.27184,2445.1,2445.0,1.70166425]
[1728236781786,3.27175,2445.2,2445.0,1.70166425]
[1728236782986,3.27175,2445.2,2444.9,2.1256077]
[1728236782987,4.02278,2445.0,2444.9,1.70166425]
[1728236783199,3.27225,2444.8,2444.7,1.70166425]
[1728236783494,3.27238,2444.7,2444.6,1.70166425]
[1728236784553,3.27225,2444.8,2444.5,1.70166425]
[1728236784882,3.27251,2444.6,2444.5,1.70166425]
[1728236785695,4.02331,2444.6,2444.5,1.70166425]
[1728236785859,3.27265,2444.5,2444.4,1.70166425]
[1728236786062,3.27235,2444.8,2444.4,2.08473137]
[1728236786271,3.27224,2444.9,2444.5,2.48006425]
[1728236786471,6.54448,2444.9,2444.6,1.70166425]
[1728236787193,3.27226,2444.8,2444.6,1.70166425]
[1728236789070,3.27238,2444.7,2444.6,1.70166425]
[1728236789514,3.27238,2444.7,2444.5,2.91013805]
[1728236789715,3.27238,2444.7,2444.6,1.70601317]
[1728236790081,3.27238,2444.7,2444.6,2.13173805]
[1728236792020,3.91280855,2445.0,2444.6,1.25556332]
[1728236792319,3.91280855,2445.0,2444.9,1.70711064]
[1728236792519,3.91280855,2445.0,2444.8,2.1338883]
[1728236792890,3.27211,2444.9,2444.8,2.1338883]
[1728236793285,3.27211,2444.9,2444.7,2.56054269]
[1728236794121,3.27225,2444.8,2444.7,2.56054269]
[1728236794332,3.27238,2444.7,2444.6,2.56054269]
[1728236794486,3.27238,2444.7,2444.5,2.56054269]
[1728236794688,3.27251,2444.6,2444.5,2.56054269]
[1728236795288,4.02331,2444.6,2444.5,2.56054269]
[1728236795628,3.27265,2444.5,2444.3,2.56054269]
[1728236795835,3.27278,2444.4,2444.3,2.56054269]
[1728236796325,3.27292,2444.3,2444.2,2.56054269]
[1728236796726,3.27305,2444.2,2444.1,2.56054269]
[1728236797299,3.27318,2444.1,2444.0,2.56054269]
[1728236797926,3.27318,2444.1,2444.0,2.56184859]
[1728236798127,3.27318,2444.1,2443.8,2.56184859]
[1728236798431,3.27318,2444.1,2444.0,2.13435262]
[1728236799289,3.27318,2444.1,2443.8,2.56184859]
[1728236799290,3.27333,2444.0,2443.8,2.56184859]
[1728236799490,3.27333,2444.0,2443.9,2.13379933]
[1728236799791,3.27333,2444.0,2443.7,2.56184859]
[1728236800099,4.02389,2444.2,2443.7,3.86076139]
[1728236800325,4.02389,2444.2,2444.0,2.13362826]
[1728236800326,3.27321,2444.1,2444.0,2.13362826]
[1728236800508,3.27321,2444.1,2444.0,1.70650715]
[1728236802039,3.27301,2444.3,2444.0,2.8924245]
[1728236802244,3.27301,2444.3,2444.2,1.70621981]
[1728236803403,3.27305,2444.2,2444.1,1.70621981]
[1728236804541,4.09285,2444.2,2444.1,1.70621981]
[1728236804748,4.09285,2444.2,2444.0,1.70621981]
[1728236804903,3.27332,2444.0,2443.8,1.70621981]
[1728236805405,3.27359,2443.8,2443.7,1.70621981]
[1728236806108,3.27359,2443.8,2443.6,1.70621981]
[1728236808236,3.27359,2443.8,2443.5,1.70621981]
[1728236808442,3.27359,2443.8,2443.5,2.51287613]
[1728236809357,3.27372,2443.7,2443.5,2.51287613]
[1728236810819,3.27372,2443.7,2443.5,0.80665632]
[1728236811525,3.27372,2443.7,2443.4,0.84087226]
[1728236811738,3.27372,2443.7,2443.4,0.7593]
[1728236812041,6.54756,2443.7,2443.4,0.7593]
[1728236813329,3.27372,2443.7,2443.4,0.7593]
[1728236813535,6.54752,2443.7,2443.4,0.7593]
[1728236814080,3.27387,2443.6,2443.4,0.7593]
[1728236816755,3.27372,2443.7,2443.4,1.00585198]
[1728236816951,3.27393,2443.6,2443.4,1.00585198]
[1728236817152,3.27399,2443.5,2443.3,0.55]
[1728236817382,3.27372,2443.7,2443.3,0.55]
[1728236817383,3.27387,2443.6,2443.3,0.55]
[1728236817852,3.274,2443.5,2443.3,0.55]
[1728236818056,3.27412,2443.4,2443.2,2.51991981]
[1728236818643,3.27426,2443.3,2443.2,0.8137]
[1728236818877,3.27426,2443.3,2443.0,2.51991981]
[1728236819181,3.27426,2443.3,2443.0,1.60583906]
[1728236819377,3.27446,2443.2,2443.0,0.8137]
[1728236820282,3.27426,2443.3,2442.9,0.55]
[1728236820442,3.27447,2443.2,2442.9,0.55]
[1728236820642,3.27453,2443.1,2442.8,2.51991981]
[1728236820876,3.27453,2443.1,2442.8,2.38585606]
[1728236821241,6.54916,2443.1,2442.8,2.38585606]
[1728236821438,3.27453,2443.1,2442.8,2.38585606]
[1728236821677,3.27442,2443.2,2442.8,4.09207587]
[1728236821889,3.27433,2443.3,2442.8,4.09207587]
[1728236822053,3.27453,2443.1,2442.8,2.51991981]
[1728236822237,3.27453,2443.1,2442.8,0.8137]
[1728236823383,6.54917,2443.1,2442.8,0.8137]
[1728236823569,3.27453,2443.1,2442.8,0.8137]
[1728236824164,3.27479,2442.9,2442.7,2.11611981]
[1728236824685,3.27493,2442.8,2442.7,2.11611981]
[1728236824846,6.54967,2442.9,2442.7,0.4099]
[1728236825045,3.27493,2442.8,2442.7,0.4099]
[1728236826148,3.27479,2442.9,2442.7,0.4099]
[1728236826485,3.27493,2442.8,2442.7,0.4099]
[1728236827445,4.09953,2442.8,2442.7,0.4099]
[1728236827643,3.27506,2442.7,2442.6,0.4099]
[1728236829586,4.09953,2442.8,2442.6,0.4099]
[1728236829761,4.09953,2442.8,2442.7,0.4099]
[1728236830580,3.27427,2443.3,2442.8,4.04282]
[1728236830787,3.27414,2443.4,2443.0,3.38607607]
[1728236830958,3.27427,2443.3,2442.9,0.51128044]
[1728236831286,3.27427,2443.3,2442.9,0.06600844]
[1728236831645,3.27427,2443.3,2442.8,5.86019588]
[1728236832450,6.5486,2443.3,2442.8,5.86019588]
[1728236832651,3.27427,2443.3,2442.8,5.86019588]
[1728236832850,3.27427,2443.3,2442.9,0.08186081]
[1728236833051,6.54863,2443.3,2442.9,0.08186081]
[1728236833287,3.27427,2443.3,2442.9,1.17533164]
[1728236833780,3.27447,2443.2,2442.9,1.17533164]
[1728236834003,3.27473,2443.0,2442.8,2.47411981]
[1728236834177,3.27473,2443.0,2442.7,2.11611981]
[1728236834378,6.54928,2443.1,2442.7,0.4099]
[1728236834587,3.27466,2443.0,2442.7,2.11611981]
[1728236835496,3.27463,2443.1,2442.7,2.11611981]
[1728236835681,6.54924,2443.1,2442.7,2.11611981]
[1728236836182,3.27461,2443.1,2442.7,0.4099]
[1728236836387,3.27473,2443.0,2442.7,0.4099]
[1728236836884,3.27473,2443.0,2442.7,2.11611981]
[1728236838169,3.27461,2443.1,2442.7,2.11611981]
[1728236838170,3.27481,2442.9,2442.7,2.11611981]
[1728236838371,6.54969,2442.9,2442.7,2.11611981]
[1728236838571,7.37431,2442.9,2442.7,2.11611981]
[1728236839005,3.27493,2442.8,2442.7,2.11611981]
[1728236840069,4.09941,2442.9,2442.7,2.11611981]
[1728236841206,7.37433,2442.9,2442.7,2.11611981]
[1728236841372,7.37433,2442.9,2442.8,1.70621981]
[1728236842414,3.27481,2442.9,2442.8,1.70621981]
[1728236849317,3.27481,2442.9,2442.8,2.1319783]
[1728236849902,3.27481,2442.9,2442.7,2.5418783]
[1728236850312,3.27481,2442.9,2442.8,2.13507945]
[1728236852310,3.27481,2442.9,2442.7,0.4099]
[1728236852811,3.27481,2442.9,2442.8,2.13655376]
[1728236853593,6.5497,2442.9,2442.7,0.4099]
[1728236853998,6.5497,2442.9,2442.8,2.13687493]
[1728236854199,3.27493,2442.8,2442.7,0.4099]
[1728236856127,6.54969,2442.9,2442.7,0.4099]
[1728236856533,6.54969,2442.9,2442.7,2.97462856]
[1728236856734,3.27493,2442.8,2442.7,0.4099]
[1728236857226,3.27493,2442.8,2442.6,3.33262856]
[1728236858409,3.27493,2442.8,2442.7,2.56472856]
[1728236859600,3.27493,2442.8,2442.6,3.33262856]